fUSD/lending_fUSD_20250311
["ID","MTS","AMOUNT","RATE_DAILY","PERIOD"]
[355934767,1741720240258,-2040.15,8.994e-05,2]
[355934768,1741720240268,-500.0,8.994e-05,2]
[355934769,1741720240278,-500.0,8.994e-05,2]
[355934770,1741720240287,-500.0,8.994e-05,2]
[355934771,1741720240297,-539.78712848,8.994e-05,2]
[355934772,1741720240307,-500.0,8.994e-05,2]
[355934773,1741720240316,-500.0,8.994e-05,2]
[355934774,1741720240326,-1130.49,8.994e-05,2]
[355934775,1741720240336,-500.0,8.994e-05,2]
[355934776,1741720240346,-680.66,8.994e-05,2]
[355934777,1741720240357,-500.0,8.994e-05,2]
[355934778,1741720240366,-155.99453011,8.994e-05,2]
[355934779,1741720240375,-500.0,8.994e-05,2]
[355934780,1741720240384,-500.0,8.994e-05,2]
[355934781,1741720240393,-500.0,8.994e-05,2]
[355934782,1741720240403,-500.0,8.994e-05,2]
[355934783,1741720240412,-500.0,8.994e-05,2]
[355934784,1741720240421,-500.0,8.994e-05,2]
[355934785,1741720240430,-500.0,8.994e-05,2]
[355934786,1741720240439,-710.61,8.994e-05,2]
[355934787,1741720240448,-1284.94,8.994e-05,2]
[355934788,1741720240458,-744.96,8.994e-05,2]
[355934789,1741720240468,-500.0,8.994e-05,2]
[355934790,1741720240477,-1642.41,8.994e-05,2]
[355934791,1741720240487,-500.0,8.994e-05,2]
[355934792,1741720240496,-500.0,8.994e-05,2]
[355934793,1741720240505,-500.0,8.994e-05,2]
[355934794,1741720240514,-734.41,8.994e-05,2]
[355934795,1741720240524,-500.0,8.994e-05,2]
[355934796,1741720240534,-500.0,8.994e-05,2]
[355934797,1741720240543,-500.0,8.994e-05,2]
[355934798,1741720240553,-500.0,8.994e-05,2]
[355934799,1741720240562,-618.98,8.994e-05,2]
[355934800,1741720240572,-607.13,8.994e-05,2]
[355934801,1741720240581,-1741.87,8.994e-05,2]
[355934802,1741720240598,-500.0,8.994e-05,2]
[355934803,1741720240614,-601.25,8.994e-05,2]
[355934804,1741720240624,-500.0,8.994e-05,2]
[355934805,1741720240634,-1632.88,8.994e-05,2]
[355934806,1741720240644,-721.2,8.994e-05,2]
[355934807,1741720240654,-500.0,8.994e-05,2]
[355934808,1741720240664,-500.0,8.994e-05,2]
[355934809,1741720240673,-500.0,8.994e-05,2]
[355934810,1741720240683,-538.91274396,8.994e-05,2]
[355934811,1741720240692,-1633.61,8.994e-05,2]
[355934812,1741720240702,-500.0,8.994e-05,2]
[355934813,1741720240712,-500.0,8.994e-05,2]
[355934814,1741720240722,-1010.39,8.994e-05,2]
[355934815,1741720240732,-500.0,8.994e-05,2]
[355934816,1741720240742,-565.55451409,8.994e-05,2]
[355934817,1741720240752,-500.0,8.994e-05,2]
[355934818,1741720240761,-500.0,8.994e-05,2]
[355934819,1741720240771,-500.0,8.994e-05,2]
[355934820,1741720240780,-1380.19,8.994e-05,2]
[355934821,1741720240790,-821.46,8.994e-05,2]
[355934822,1741720240799,-227.4497683,8.994e-05,2]
[355934823,1741720240809,-500.0,8.994e-05,2]
[355934824,1741720240819,-660.63,8.994e-05,2]
[355934825,1741720240828,-1782.25,8.994e-05,2]
[355934826,1741720240838,-500.0,8.994e-05,2]
[355934827,1741720240847,-500.0,8.994e-05,2]
[355934828,1741720240859,-500.0,8.994e-05,2]
[355934829,1741720240869,-500.0,8.994e-05,2]
[355934830,1741720240879,-500.0,8.994e-05,2]
[355934831,1741720240888,-500.0,8.994e-05,2]
[355934832,1741720241172,-500.0,8.994e-05,2]
[355934833,1741720241184,-500.0,8.994e-05,2]
[355934834,1741720241194,-500.0,8.994e-05,2]
[355934835,1741720241204,-1401.72,8.994e-05,2]
[355934836,1741720241214,-500.0,8.994e-05,2]
[355934837,1741720241223,-500.0,8.994e-05,2]
[355934838,1741720241234,-500.0,8.994e-05,2]
[355934839,1741720241243,-1164.92,8.994e-05,2]
[355934840,1741720241253,-500.0,8.994e-05,2]
[355934841,1741720241262,-1655.11,8.994e-05,2]
[355934842,1741720241272,-500.0,8.994e-05,2]
[355934843,1741720241281,-500.0,8.994e-05,2]
[355934844,1741720241291,-500.0,8.994e-05,2]
[355934845,1741720241301,-500.0,8.994e-05,2]
[355934846,1741720241310,-500.0,8.994e-05,2]
[355934847,1741720241320,-500.0,8.994e-05,2]
[355934848,1741720241329,-500.0,8.994e-05,2]
[355934849,1741720241339,-500.0,8.994e-05,2]
[355934850,1741720241348,-500.0,8.994e-05,2]
[355934851,1741720241359,-1057.54,8.994e-05,2]
[355934852,1741720241369,-500.0,8.994e-05,2]
[355934853,1741720241378,-500.0,8.994e-05,2]
[355934854,1741720241388,-500.0,8.994e-05,2]
[355934855,1741720241397,-500.0,8.994e-05,2]
[355934856,1741720241406,-625.52,8.994e-05,2]
[355934857,1741720241416,-279.96400028,8.994e-05,2]
[355934858,1741720241425,-628.81,8.994e-05,2]
[355934859,1741720241435,-500.0,8.994e-05,2]
[355934860,1741720241444,-500.0,8.994e-05,2]
[355934861,1741720241454,-1101.74,8.994e-05,2]
[355934862,1741720241463,-174.48907376,8.994e-05,2]
[355934863,1741720241472,-1742.71,8.994e-05,2]
[355934864,1741720241482,-539.24,8.994e-05,2]
[355934865,1741720241492,-500.0,8.994e-05,2]
[355934866,1741720241501,-1001.62,8.994e-05,2]
[355934867,1741720241511,-500.0,8.994e-05,2]
[355934868,1741720241520,-1614.88,8.994e-05,2]
[355934869,1741720241530,-500.0,8.994e-05,2]
[355934870,1741720241539,-504.3,8.994e-05,2]
[355934871,1741720241548,-611.45,8.994e-05,2]
[355934872,1741720241558,-539.91,8.994e-05,2]
[355934873,1741720241568,-500.0,8.994e-05,2]
[355934874,1741720241577,-1341.6,8.994e-05,2]
[355934875,1741720241587,-500.0,8.994e-05,2]
[355934876,1741720241596,-500.0,8.994e-05,2]
[355934877,1741720241605,-500.0,8.994e-05,2]
[355934878,1741720241615,-500.0,8.994e-05,2]
[355934879,1741720241625,-540.16217103,8.994e-05,2]
[355934880,1741720241635,-500.0,8.994e-05,2]
[355934881,1741720241644,-530.93997211,8.994e-05,2]
[355934882,1741720241656,-507.6,8.994e-05,2]
[355934883,1741720241674,-932.93,8.994e-05,2]
[355934884,1741720241684,-500.0,8.994e-05,2]
[355934885,1741720241693,-500.0,8.994e-05,2]
[355934886,1741720241703,-500.0,8.994e-05,2]
[355934887,1741720241717,-500.0,8.994e-05,2]
[355934888,1741720241727,-500.0,8.994e-05,2]
[355934889,1741720241736,-500.0,8.994e-05,2]
[355934890,1741720241746,-500.0,8.994e-05,2]
[355934891,1741720241755,-500.0,8.994e-05,2]
[355934892,1741720241764,-865.39,8.994e-05,2]
[355934893,1741720241774,-1049.17,8.994e-05,2]
[355934894,1741720241784,-500.0,8.994e-05,2]
[355934895,1741720241796,-692.68,8.994e-05,2]
[355934896,1741720241816,-701.61,8.994e-05,2]
[355934897,1741720241826,-500.0,8.994e-05,2]
[355934898,1741720241836,-500.0,8.994e-05,2]
[355934899,1741720241845,-500.0,8.994e-05,2]
[355934900,1741720241855,-500.0,8.994e-05,2]
[355934901,1741720241866,-500.0,8.994e-05,2]
[355934902,1741720241875,-4757.02,8.994e-05,2]
[355934903,1741720241884,-1789.66,8.994e-05,2]
[355934904,1741720241894,-500.0,8.994e-05,2]
[355934905,1741720241903,-940.9,8.994e-05,2]
[355934906,1741720241914,-386.82940191,8.994e-05,2]
[355934907,1741720241923,-527.25,8.994e-05,2]
[355934908,1741720241932,-685.31,8.994e-05,2]
[355934909,1741720241941,-500.0,8.994e-05,2]
[355934910,1741720241951,-910.24,8.994e-05,2]
[355934911,1741720241961,-500.0,8.994e-05,2]
[355934912,1741720241971,-671.89,8.994e-05,2]
[355934913,1741720241981,-300.17894154,8.994e-05,2]
[355934914,1741720241990,-500.0,8.994e-05,2]
[355934915,1741720242000,-500.0,8.994e-05,2]
[355934916,1741720242009,-1892.97,8.994e-05,2]
[355934917,1741720242018,-510.8,8.994e-05,2]
[355934918,1741720242028,-811.6,8.994e-05,2]
[355934919,1741720242038,-500.0,8.994e-05,2]
[355934920,1741720242047,-1903.7,8.994e-05,2]
[355934921,1741720242056,-500.0,8.994e-05,2]
[355934922,1741720242065,-657.18,8.994e-05,2]
[355934923,1741720242075,-500.0,8.994e-05,2]
[355934924,1741720242084,-1792.19,8.994e-05,2]
[355934925,1741720242094,-748.25,8.994e-05,2]
[355934926,1741720242103,-500.0,8.994e-05,2]
[355934927,1741720242114,-500.0,8.994e-05,2]
[355934928,1741720242124,-500.0,8.994e-05,2]
[355934929,1741720242133,-1840.42,8.994e-05,2]
[355934930,1741720242143,-500.0,8.994e-05,2]
[355934931,1741720242153,-411.42891779,8.994e-05,2]
[355934932,1741720242164,-500.0,8.994e-05,2]
[355934933,1741720242175,-558.13297332,8.994e-05,2]
[355934934,1741720242185,-508.57,8.994e-05,2]
[355934935,1741720242194,-500.0,8.994e-05,2]
[355934936,1741720242203,-500.0,8.994e-05,2]
[355934937,1741720242213,-1428.17,8.994e-05,2]
[355934938,1741720242223,-525.53,8.994e-05,2]
[355934939,1741720242232,-500.0,8.994e-05,2]
[355934940,1741720242242,-500.0,8.994e-05,2]
[355934941,1741720242251,-552.72,8.994e-05,2]
[355934942,1741720242260,-1179.22,8.994e-05,2]
[355934943,1741720242269,-500.0,8.994e-05,2]
[355934944,1741720242278,-500.0,8.994e-05,2]
[355934945,1741720242288,-968.23,8.994e-05,2]
[355934946,1741720242297,-500.0,8.994e-05,2]
[355934948,1741720242306,-920.37,8.994e-05,2]
[355934949,1741720242315,-980.05,8.994e-05,2]
[355934950,1741720242324,-500.0,8.994e-05,2]
[355934952,1741720242334,-1413.6,8.994e-05,2]
[355934953,1741720242343,-780.22,8.994e-05,2]
[355934954,1741720242352,-500.0,8.994e-05,2]
[355934956,1741720242364,-500.0,8.994e-05,2]
[355934957,1741720242373,-500.0,8.994e-05,2]
[355934958,1741720242382,-500.0,8.994e-05,2]
[355934959,1741720242391,-1424.88,8.994e-05,2]
[355934960,1741720242400,-500.0,8.994e-05,2]
[355934961,1741720242411,-1707.93,8.994e-05,2]
[355934962,1741720242421,-781.92,8.994e-05,2]
[355934963,1741720242430,-500.0,8.994e-05,2]
[355934964,1741720242440,-1195.62,8.994e-05,2]
[355934966,1741720242449,-1265.25,8.994e-05,2]
[355934967,1741720242459,-500.0,8.994e-05,2]
[355934968,1741720242469,-573.85,8.994e-05,2]
[355934969,1741720242479,-500.0,8.994e-05,2]
[355934971,1741720242488,-292.27835134,8.994e-05,2]
[355934972,1741720242498,-1010.02,8.994e-05,2]
[355934975,1741720242507,-503.1,8.994e-05,2]
[355934978,1741720242516,-500.0,8.994e-05,2]
[355934981,1741720242526,-889.85,8.994e-05,2]
[355934983,1741720242535,-1041.24,8.994e-05,2]
[355934987,1741720242544,-500.0,8.994e-05,2]
[355934990,1741720242553,-500.0,8.994e-05,2]
[355934992,1741720242562,-500.0,8.994e-05,2]
[355934994,1741720242571,-760.14,8.994e-05,2]
[355934996,1741720242580,-1331.75,8.994e-05,2]
[355934999,1741720242589,-500.0,8.994e-05,2]
[355935002,1741720242598,-500.0,8.994e-05,2]
[355935004,1741720242607,-500.0,8.994e-05,2]
[355935006,1741720242617,-500.0,8.994e-05,2]
[355935008,1741720242626,-1247.89,8.994e-05,2]
[355935010,1741720242635,-500.0,8.994e-05,2]
[355935012,1741720242644,-768.27,8.994e-05,2]
[355935013,1741720242654,-500.0,8.994e-05,2]
[355935014,1741720242663,-1343.43,8.994e-05,2]
[355935015,1741720242672,-998.25,8.994e-05,2]
[355935016,1741720242681,-500.0,8.994e-05,2]
[355935017,1741720242691,-1036.84,8.994e-05,2]
[355935018,1741720242700,-556.72,8.994e-05,2]
[355935019,1741720242708,-500.0,8.994e-05,2]
[355935020,1741720242718,-1031.8,8.994e-05,2]
[355935021,1741720242727,-1671.75,8.994e-05,2]
[355935022,1741720242736,-500.0,8.994e-05,2]
[355935023,1741720242745,-500.0,8.994e-05,2]
[355935024,1741720242755,-500.0,8.994e-05,2]
[355935025,1741720242764,-500.0,8.994e-05,2]
[355935026,1741720242773,-755.31,8.994e-05,2]
[355935027,1741720242782,-500.0,8.994e-05,2]
[355935028,1741720242791,-500.0,8.994e-05,2]
[355935029,1741720242800,-500.0,8.994e-05,2]
[355935030,1741720242810,-1517.61,8.994e-05,2]
[355935031,1741720242819,-1094.81,8.994e-05,2]
[355935032,1741720242828,-500.0,8.994e-05,2]
[355935033,1741720242838,-616.61,8.994e-05,2]
[355935034,1741720242847,-1360.14,8.994e-05,2]
[355935035,1741720242857,-500.0,8.994e-05,2]
[355935036,1741720242869,-1578.0,8.994e-05,2]
[355935037,1741720242878,-663.55,8.994e-05,2]
[355935038,1741720242887,-500.0,8.994e-05,2]
[355935039,1741720242896,-968.83,8.994e-05,2]
[355935040,1741720242905,-1000.0,8.994e-05,2]
[355935041,1741720242914,-500.0,8.994e-05,2]
[355935043,1741720242923,-500.0,8.994e-05,2]
[355935044,1741720242932,-1293.98,8.994e-05,2]
[355935045,1741720242941,-500.0,8.994e-05,2]
[355935046,1741720242951,-500.0,8.994e-05,2]
[355935047,1741720242964,-500.0,8.994e-05,2]
[355935048,1741720242973,-500.0,8.994e-05,2]
[355935049,1741720242982,-626.93,8.994e-05,2]
[355935050,1741720242991,-500.0,8.994e-05,2]
[355935051,1741720243001,-500.0,8.994e-05,2]
[355935052,1741720243010,-500.0,8.994e-05,2]
[355935053,1741720243019,-500.0,8.994e-05,2]
[355935054,1741720243028,-643.12,8.994e-05,2]
[355935055,1741720243037,-2032.79,8.994e-05,2]
[355935056,1741720243047,-556.63840408,8.994e-05,2]
[355935057,1741720243056,-1085.59,8.994e-05,2]
[355935058,1741720243066,-552.0,8.994e-05,2]
[355935059,1741720243075,-1588.97,8.994e-05,2]
[355935061,1741720243086,-1214.6,8.994e-05,2]
[355935063,1741720243095,-1124.91,8.994e-05,2]
[355935065,1741720243104,-500.0,8.994e-05,2]
[355935066,1741720243115,-500.0,8.994e-05,2]
[355935067,1741720243125,-628.62,8.994e-05,2]
[355935068,1741720243134,-531.23709183,8.994e-05,2]
[355935069,1741720243143,-500.0,8.994e-05,2]
[355935070,1741720243157,-500.0,8.994e-05,2]
[355935071,1741720243166,-502.79,8.994e-05,2]
[355935072,1741720243176,-343.65679705,8.994e-05,2]
[355935073,1741720243185,-720.21,8.994e-05,2]
[355935074,1741720243196,-500.0,8.994e-05,2]
[355935075,1741720243205,-1733.02,8.994e-05,2]
[355935076,1741720243216,-984.39,8.994e-05,2]
[355935077,1741720243225,-500.0,8.994e-05,2]
[355935078,1741720243235,-1383.52,8.994e-05,2]
[355935079,1741720243245,-1722.58,8.994e-05,2]
[355935080,1741720243254,-500.0,8.994e-05,2]
[355935081,1741720243263,-574.89,8.994e-05,2]
[355935082,1741720243272,-500.0,8.994e-05,2]
[355935083,1741720243281,-500.0,8.994e-05,2]
[355935084,1741720243290,-527.5,8.994e-05,2]
[355935085,1741720243300,-500.0,8.994e-05,2]
[355935086,1741720243309,-500.0,8.994e-05,2]
[355935087,1741720243318,-500.0,8.994e-05,2]
[355935088,1741720243328,-500.0,8.994e-05,2]
[355935089,1741720243338,-500.0,8.994e-05,2]
[355935090,1741720243347,-500.0,8.994e-05,2]
[355935091,1741720243356,-500.0,8.994e-05,2]
[355935092,1741720243371,-500.0,8.994e-05,2]
[355935093,1741720243381,-646.15,8.994e-05,2]
[355935094,1741720243391,-500.0,8.994e-05,2]
[355935095,1741720243400,-500.0,8.994e-05,2]
[355935096,1741720243410,-532.58527162,8.994e-05,2]
[355935097,1741720243421,-500.0,8.994e-05,2]
[355935098,1741720243430,-500.0,8.994e-05,2]
[355935099,1741720243439,-500.0,8.994e-05,2]
[355935100,1741720243449,-500.0,8.994e-05,2]
[355935101,1741720243459,-1605.16,8.994e-05,2]
[355935102,1741720243469,-500.0,8.994e-05,2]
[355935103,1741720243479,-500.0,8.994e-05,2]
[355935104,1741720243488,-500.0,8.994e-05,2]
[355935105,1741720243498,-508.91,8.994e-05,2]
[355935106,1741720243508,-500.0,8.994e-05,2]
[355935107,1741720243518,-1032.96,8.994e-05,2]
[355935108,1741720243528,-699.84,8.994e-05,2]
[355935109,1741720243539,-500.0,8.994e-05,2]
[355935110,1741720243551,-1905.14,8.994e-05,2]
[355935111,1741720243563,-581.39,8.994e-05,2]
[355935112,1741720243573,-500.0,8.994e-05,2]
[355935113,1741720243583,-500.0,8.994e-05,2]
[355935114,1741720243593,-500.0,8.994e-05,2]
[355935115,1741720243602,-1433.33,8.994e-05,2]
[355935116,1741720243615,-1717.27,8.994e-05,2]
[355935117,1741720243624,-1132.91,8.994e-05,2]
[355935118,1741720243633,-500.0,8.994e-05,2]
[355935119,1741720243642,-500.0,8.994e-05,2]
[355935120,1741720243650,-500.0,8.994e-05,2]
[355935121,1741720243661,-776.77,8.994e-05,2]
[355935122,1741720243670,-1537.81,8.994e-05,2]
[355935123,1741720243679,-1721.11,8.994e-05,2]
[355935124,1741720243687,-500.0,8.994e-05,2]
[355935125,1741720243697,-573.16,8.994e-05,2]
[355935126,1741720243705,-952.32,8.994e-05,2]
[355935127,1741720243715,-500.0,8.994e-05,2]
[355935128,1741720243724,-500.0,8.994e-05,2]
[355935129,1741720243733,-500.0,8.994e-05,2]
[355935130,1741720243742,-802.23,8.994e-05,2]
[355935131,1741720243751,-527.65681505,8.994e-05,2]
[355935132,1741720243760,-500.0,8.994e-05,2]
[355935133,1741720243769,-500.0,8.994e-05,2]
[355935134,1741720243779,-500.0,8.994e-05,2]
[355935135,1741720243788,-670.98,8.994e-05,2]
[355935136,1741720243797,-500.0,8.994e-05,2]
[355935137,1741720243806,-1445.88,8.994e-05,2]
[355935138,1741720243815,-600.68,8.994e-05,2]
[355935139,1741720243824,-500.0,8.994e-05,2]
[355935140,1741720243835,-500.0,8.994e-05,2]
[355935141,1741720243844,-2856.49,8.994e-05,2]
[355935142,1741720243853,-500.0,8.994e-05,2]
[355935143,1741720243865,-1512.45,8.994e-05,2]
[355935144,1741720243874,-1367.77,8.994e-05,2]
[355935145,1741720243883,-1426.13,8.994e-05,2]
[355935146,1741720243893,-1008.75,8.994e-05,2]
[355935147,1741720243903,-1026.02,8.994e-05,2]
[355935148,1741720243912,-500.0,8.994e-05,2]
[355935149,1741720243922,-712.3,8.994e-05,2]
[355935150,1741720243931,-648.13,8.994e-05,2]
[355935151,1741720243940,-500.0,8.994e-05,2]
[355935152,1741720243949,-562.37,8.994e-05,2]
[355935153,1741720243959,-500.0,8.994e-05,2]
[355935154,1741720243968,-1201.5,8.994e-05,2]
[355935155,1741720243978,-1704.59,8.994e-05,2]
[355935156,1741720243987,-500.0,8.994e-05,2]
[355935157,1741720243998,-500.0,8.994e-05,2]
[355935158,1741720244008,-571.88,8.994e-05,2]
[355935159,1741720244018,-870.42,8.994e-05,2]
[355935160,1741720244027,-596.27,8.994e-05,2]
[355935161,1741720244036,-1711.73,8.994e-05,2]
[355935162,1741720244046,-1352.65,8.994e-05,2]
[355935163,1741720244055,-500.0,8.994e-05,2]
[355935164,1741720244065,-1870.93,8.994e-05,2]
[355935165,1741720244074,-500.0,8.994e-05,2]
[355935166,1741720244083,-1500.0,8.994e-05,2]
[355935167,1741720244093,-1598.78,8.994e-05,2]
[355935168,1741720244102,-570.94,8.994e-05,2]
[355935169,1741720244114,-7340.56,8.994e-05,2]
[355935170,1741720244124,-769.88,8.994e-05,2]
[355935171,1741720244134,-1458.62,8.994e-05,2]
[355935172,1741720244143,-500.0,8.994e-05,2]
[355935173,1741720244153,-500.0,8.994e-05,2]
[355935174,1741720244166,-1280.52,8.994e-05,2]
[355935175,1741720244183,-500.0,8.994e-05,2]
[355935176,1741720244198,-1121.8,8.994e-05,2]
[355935177,1741720244209,-500.0,8.994e-05,2]
[355935178,1741720244218,-507.08,8.994e-05,2]
[355935179,1741720244227,-500.0,8.994e-05,2]
[355935180,1741720244237,-500.0,8.994e-05,2]
[355935181,1741720244247,-500.0,8.994e-05,2]
[355935182,1741720244440,-1442.39,8.994e-05,2]
[355935183,1741720244450,-540.99141521,8.994e-05,2]
[355935184,1741720244460,-1964.11,8.994e-05,2]
[355935185,1741720244470,-1104.38,8.994e-05,2]
[355935186,1741720244480,-588.28015299,8.994e-05,2]
[355935187,1741720244489,-500.0,8.994e-05,2]
[355935188,1741720244499,-500.0,8.994e-05,2]
[355935189,1741720244509,-500.0,8.994e-05,2]
[355935190,1741720244528,-500.0,8.994e-05,2]
[355935191,1741720244547,-505.24,8.994e-05,2]
[355935192,1741720244563,-500.0,8.994e-05,2]
[355935193,1741720244574,-2710.13,8.994e-05,2]
[355935194,1741720244587,-500.0,8.994e-05,2]
[355935195,1741720244598,-500.0,8.994e-05,2]
[355935196,1741720244608,-500.0,8.994e-05,2]
[355935197,1741720244621,-500.0,8.994e-05,2]
[355935198,1741720244630,-500.0,8.994e-05,2]
[355935199,1741720244639,-500.0,8.994e-05,2]
[355935200,1741720244648,-1530.03,8.994e-05,2]
[355935201,1741720244657,-500.0,8.994e-05,2]
[355935202,1741720244666,-500.0,8.994e-05,2]
[355935203,1741720244675,-1405.97,8.994e-05,2]
[355935204,1741720244684,-500.0,8.994e-05,2]
[355935205,1741720244693,-743.19,8.994e-05,2]
[355935206,1741720244703,-625.03,8.994e-05,2]
[355935207,1741720244711,-176.19862867,8.994e-05,2]
[355935208,1741720244720,-500.0,8.994e-05,2]
[355935209,1741720244729,-500.0,8.994e-05,2]
[355935210,1741720244738,-523.0597085,8.994e-05,2]
[355935211,1741720244748,-577.79,8.994e-05,2]
[355935212,1741720244757,-1049.76,8.994e-05,2]
[355935213,1741720244767,-500.0,8.994e-05,2]
[355935214,1741720244777,-640.51,8.994e-05,2]
[355935215,1741720244786,-500.0,8.994e-05,2]
[355935216,1741720244796,-552.54,8.994e-05,2]
[355935217,1741720244806,-500.0,8.994e-05,2]
[355935218,1741720244816,-2123.98,8.994e-05,2]
[355935219,1741720244826,-5022.51,8.994e-05,2]
[355935220,1741720244836,-556.5,8.994e-05,2]
[355935221,1741720244847,-500.0,8.994e-05,2]
[355935222,1741720244857,-589.42850965,8.994e-05,2]
[355935223,1741720244871,-500.0,8.994e-05,2]
[355935224,1741720244881,-1956.71,8.994e-05,2]
[355935225,1741720244891,-500.0,8.994e-05,2]
[355935226,1741720244902,-576.5,8.994e-05,2]
[355935227,1741720244911,-1071.63,8.994e-05,2]
[355935228,1741720244921,-322.74297645,8.994e-05,2]
[355935229,1741720244931,-964.84,8.994e-05,2]
[355935230,1741720244940,-1287.59,8.994e-05,2]
[355935231,1741720244950,-512.53,8.994e-05,2]
[355935232,1741720244959,-500.0,8.994e-05,2]
[355935233,1741720244969,-500.0,8.994e-05,2]
[355935234,1741720244978,-2218.01,8.994e-05,2]
[355935235,1741720244987,-2206.33,8.994e-05,2]
[355935236,1741720244997,-1496.84,8.994e-05,2]
[355935237,1741720245006,-500.0,8.994e-05,2]
[355935238,1741720245017,-1548.16,8.994e-05,2]
[355935239,1741720245027,-500.0,8.994e-05,2]
[355935240,1741720245037,-570.69854174,8.994e-05,2]
[355935241,1741720245047,-500.0,8.994e-05,2]
[355935242,1741720245057,-580.1335468,8.994e-05,2]
[355935243,1741720245066,-522.89,8.994e-05,2]
[355935244,1741720245075,-500.0,8.994e-05,2]
[355935245,1741720245085,-500.0,8.994e-05,2]
[355935246,1741720245095,-899.3,8.994e-05,2]
[355935247,1741720245105,-1268.22,8.994e-05,2]
[355935248,1741720245119,-619.73,8.994e-05,2]
[355935249,1741720245128,-500.0,8.994e-05,2]
[355935250,1741720245138,-500.0,8.994e-05,2]
[355935251,1741720245148,-500.0,8.994e-05,2]
[355935252,1741720245162,-500.0,8.994e-05,2]
[355935253,1741720245171,-500.0,8.994e-05,2]
[355935254,1741720245181,-2977.37,8.994e-05,2]
[355935255,1741720245191,-3870.03,8.994e-05,2]
[355935256,1741720245201,-1217.53,8.994e-05,2]
[355935257,1741720245212,-979.69,8.994e-05,2]
[355935258,1741720245221,-938.79,8.994e-05,2]
[355935259,1741720245232,-404.96630774,8.994e-05,2]
[355935260,1741720245243,-500.0,8.994e-05,2]
[355935261,1741720245252,-500.0,8.994e-05,2]
[355935262,1741720245262,-500.0,8.994e-05,2]
[355935263,1741720245271,-956.53,8.994e-05,2]
[355935264,1741720245281,-500.0,8.994e-05,2]
[355935265,1741720245290,-500.0,8.994e-05,2]
[355935266,1741720245300,-500.0,8.994e-05,2]
[355935267,1741720245310,-1019.76,8.994e-05,2]
[355935268,1741720245319,-740.11,8.994e-05,2]
[355935269,1741720245329,-500.0,8.994e-05,2]
[355935270,1741720245338,-500.0,8.995e-05,2]
[355935271,1741720245348,-500.0,8.995e-05,2]
[355935272,1741720245360,-500.0,8.995e-05,2]
[355935273,1741720245372,-560.26515898,8.995e-05,2]
[355935274,1741720245382,-500.0,8.995e-05,2]
[355935275,1741720245391,-500.0,8.995e-05,2]
[355935276,1741720245401,-500.0,8.995e-05,2]
[355935277,1741720245410,-500.0,8.995e-05,2]
[355935278,1741720245420,-500.0,8.995e-05,2]
[355935279,1741720245429,-500.0,8.995e-05,2]
[355935280,1741720245438,-500.0,8.995e-05,2]
[355935281,1741720245448,-500.0,8.995e-05,2]
[355935282,1741720245459,-521.97680646,8.995e-05,2]
[355935283,1741720245468,-505.65066637,8.995e-05,2]
[355935284,1741720245477,-500.0,8.995e-05,2]
[355935285,1741720245487,-370.16267135,8.995e-05,2]
[355935286,1741720245496,-500.0,8.995e-05,2]
[355935287,1741720245506,-506.0182003,8.995e-05,2]
[355935288,1741720245516,-507.41780014,8.995e-05,2]
[355935289,1741720245525,-500.91962671,8.995e-05,2]
[355935290,1741720245534,-500.0,8.995e-05,2]
[355935291,1741720245544,-506.69694424,8.995e-05,2]
[355935292,1741720245553,-220.7049222,8.995e-05,2]
[355935293,1741720245563,-500.0,8.995e-05,2]
[355935294,1741720245572,-500.0,8.995e-05,2]
[355935295,1741720245582,-322.79069676,8.995e-05,2]
[355935296,1741720245591,-290.53532578,8.995e-05,2]
[355935297,1741720245602,-500.0,8.995e-05,2]
[355935298,1741720245616,-500.0,8.995e-05,2]
[355935299,1741720245626,-500.0,8.995e-05,2]